[Event "*** Titled Tuesday Blitz"]
[Site "Chess.com"]
[Date "2021.02.02"]
[Round "11"]
[White "Snowflake"]
[Black "mirochka"]
[Result "0-1"]
[WhiteElo "2323"]
[BlackElo "2232"]
[TimeControl "180+1"]
[EndTime "12:07:17 PST"]
[Termination "mirochka won by checkmate"]

1. e4 {[%clk 0:03:00.9]} 1... c5 {[%clk 0:02:59]} 2. Nc3 {[%clk 0:02:57.3]} 2...
Nc6 {[%clk 0:02:54.8]} 3. f4 {[%clk 0:02:57.4]} 3... d6 {[%clk 0:02:37.6]} 4.
Nf3 {[%clk 0:02:58.3]} 4... g6 {[%clk 0:02:37.2]} 5. Bc4 {[%clk 0:02:55.9]} 5...
Bg7 {[%clk 0:02:36]} 6. O-O {[%clk 0:02:56.6]} 6... e6 {[%clk 0:02:30.3]} 7. d3
{[%clk 0:02:57.1]} 7... Nge7 {[%clk 0:02:29.6]} 8. Qe1 {[%clk 0:02:57.6]} 8...
O-O {[%clk 0:02:26.8]} 9. Qh4 {[%clk 0:02:57.5]} 9... d5 {[%clk 0:02:17.7]} 10.
Bb3 {[%clk 0:02:54.3]} 10... Nd4 {[%clk 0:02:12.7]} 11. f5 {[%clk 0:02:53.5]}
11... gxf5 {[%clk 0:01:46.5]} 12. exd5 {[%clk 0:02:19.9]} 12... Nxb3 {[%clk
0:01:27.9]} 13. axb3 {[%clk 0:02:15.1]} 13... Nxd5 {[%clk 0:01:27]} 14. Bg5
{[%clk 0:02:15.2]} 14... Qd6 {[%clk 0:01:19]} 15. Bh6 {[%clk 0:02:13]} 15... e5
{[%clk 0:00:35.9]} 16. Nxd5 {[%clk 0:01:58.2]} 16... Bxh6 {[%clk 0:00:25.8]} 17.
Nf6+ {[%clk 0:01:52.6]} 17... Kg7 {[%clk 0:00:24.1]} 18. Nh5+ {[%clk 0:01:36.5]}
18... Kh8 {[%clk 0:00:23.2]} 19. Ng5 {[%clk 0:01:33.9]} 19... Bxg5 {[%clk
0:00:20.9]} 20. Qxg5 {[%clk 0:01:34.8]} 20... Qg6 {[%clk 0:00:20.8]} 21. Qh4
{[%clk 0:01:34.9]} 21... Rg8 {[%clk 0:00:18.1]} 22. Rf2 {[%clk 0:01:35.2]} 22...
Be6 {[%clk 0:00:16.2]} 23. Nf6 {[%clk 0:01:34.9]} 23... Rg7 {[%clk 0:00:16]} 24.
g3 {[%clk 0:01:24.8]} 24... Qg5 {[%clk 0:00:16]} 25. Qxg5 {[%clk 0:01:03.3]}
25... Rxg5 {[%clk 0:00:16.9]} 26. h4 {[%clk 0:01:03.6]} 26... Rxg3+ {[%clk
0:00:15.5]} 27. Kh2 {[%clk 0:01:04.1]} 27... Rg6 {[%clk 0:00:14.6]} 28. Nh5
{[%clk 0:01:05]} 28... Rh6 {[%clk 0:00:14.6]} 29. Ng3 {[%clk 0:01:04.8]} 29...
Rxh4+ {[%clk 0:00:15.1]} 30. Kg1 {[%clk 0:01:05.4]} 30... Rg8 {[%clk 0:00:15.1]}
31. Rg2 {[%clk 0:01:06]} 31... Rhg4 {[%clk 0:00:15.3]} 32. Re1 {[%clk
0:01:02.4]} 32... Rxg3 {[%clk 0:00:15.3]} 33. Rxg3 {[%clk 0:01:03.3]} 33...
Rxg3+ {[%clk 0:00:14.3]} 34. Kf2 {[%clk 0:01:04.2]} 34... Rh3 {[%clk 0:00:12.6]}
35. Rxe5 {[%clk 0:01:05.1]} 35... Kg7 {[%clk 0:00:11.2]} 36. Rxc5 {[%clk
0:01:04.9]} 36... Kf6 {[%clk 0:00:10.4]} 37. Rc7 {[%clk 0:01:05.2]} 37... Bd5
{[%clk 0:00:10.5]} 38. c4 {[%clk 0:01:04.5]} 38... Bc6 {[%clk 0:00:10.5]} 39. d4
{[%clk 0:01:05.4]} 39... Rxb3 {[%clk 0:00:09.9]} 40. d5 {[%clk 0:01:06.3]} 40...
Ba4 {[%clk 0:00:09.7]} 41. c5 {[%clk 0:01:04.7]} 41... Rxb2+ {[%clk 0:00:10]}
42. Ke3 {[%clk 0:01:04.5]} 42... a5 {[%clk 0:00:10]} 43. Kd4 {[%clk 0:01:01.8]}
43... Rd2+ {[%clk 0:00:09.5]} 44. Kc4 {[%clk 0:01:01.2]} 44... Rc2+ {[%clk
0:00:08.6]} 45. Kd3 {[%clk 0:01:00.3]} 45... Rc1 {[%clk 0:00:08.5]} 46. Kd2
{[%clk 0:00:58.4]} 46... Rd1+ {[%clk 0:00:08.7]} 47. Kc3 {[%clk 0:00:58.8]}
47... Rxd5 {[%clk 0:00:09.6]} 48. Kc4 {[%clk 0:00:59.7]} 48... Rd1 {[%clk
0:00:08.8]} 49. Rxb7 {[%clk 0:01:00.6]} 49... Rc1+ {[%clk 0:00:08.8]} 50. Kd4
{[%clk 0:01:01.5]} 50... Bd1 {[%clk 0:00:06.4]} 51. Rb6+ {[%clk 0:01:02.4]}
51... Kg5 {[%clk 0:00:05.7]} 52. Ra6 {[%clk 0:01:03.3]} 52... Bf3 {[%clk
0:00:05.6]} 53. Rxa5 {[%clk 0:01:03.5]} 53... h5 {[%clk 0:00:05.9]} 54. Ke3
{[%clk 0:01:04.4]} 54... Be4 {[%clk 0:00:05.1]} 55. Kf2 {[%clk 0:01:05.3]} 55...
h4 {[%clk 0:00:05.3]} 56. Ra7 {[%clk 0:01:01.8]} 56... h3 {[%clk 0:00:05.4]} 57.
Rxf7 {[%clk 0:00:59]} 57... h2 {[%clk 0:00:05.9]} 58. Rh7 {[%clk 0:00:58.6]}
58... h1=Q {[%clk 0:00:05.9]} 59. Rxh1 {[%clk 0:00:59.5]} 59... Rxh1 {[%clk
0:00:05.8]} 60. Ke3 {[%clk 0:01:00.4]} 60... Rc1 {[%clk 0:00:06.3]} 61. Kd4
{[%clk 0:01:01.3]} 61... Rc2 {[%clk 0:00:06.1]} 62. Ke5 {[%clk 0:01:02.2]} 62...
Rxc5+ {[%clk 0:00:05.9]} 63. Kd6 {[%clk 0:01:03.1]} 63... f4 {[%clk 0:00:06.2]}
64. Ke7 {[%clk 0:01:00.1]} 64... f3 {[%clk 0:00:07.1]} 65. Kd8 {[%clk 0:01:01]}
65... f2 {[%clk 0:00:07.9]} 66. Ke7 {[%clk 0:01:01.9]} 66... f1=Q {[%clk
0:00:08]} 67. Kd6 {[%clk 0:01:02.8]} 67... Qd3+ {[%clk 0:00:08.3]} 68. Ke7
{[%clk 0:01:03.7]} 68... Qd5 {[%clk 0:00:08.7]} 69. Ke8 {[%clk 0:01:03.8]} 69...
Rc7 {[%clk 0:00:09.6]} 70. Kf8 {[%clk 0:01:04.7]} 70... Qd8# {[%clk 0:00:09.3]}
0-1

[Event "*** Titled Tuesday Blitz"]
[Site "Chess.com"]
[Date "2021.02.02"]
[Round "11"]
[White "Blitzstream"]
[Black "davidkalashian"]
[Result "0-1"]
[WhiteElo "2749"]
[BlackElo "2612"]
[TimeControl "180+1"]
[EndTime "12:07:18 PST"]
[Termination "davidkalashian won by checkmate"]

1. e4 {[%clk 0:03:00.9]} 1... c5 {[%clk 0:02:59]} 2. Nf3 {[%clk 0:03:00.9]} 2...
d6 {[%clk 0:02:59]} 3. b4 {[%clk 0:03:00.1]} 3... Nf6 {[%clk 0:02:56.9]} 4. bxc5
{[%clk 0:02:54.4]} 4... Nxe4 {[%clk 0:02:55.2]} 5. cxd6 {[%clk 0:02:54.7]} 5...
Nxd6 {[%clk 0:02:52.4]} 6. d4 {[%clk 0:02:53.8]} 6... g6 {[%clk 0:02:51.9]} 7.
Be2 {[%clk 0:02:47.5]} 7... Bg7 {[%clk 0:02:51.6]} 8. O-O {[%clk 0:02:47.8]}
8... O-O {[%clk 0:02:52]} 9. c4 {[%clk 0:02:48.3]} 9... Nc6 {[%clk 0:02:49.8]}
10. Bb2 {[%clk 0:02:47.9]} 10... Bg4 {[%clk 0:02:49.8]} 11. Nbd2 {[%clk
0:02:36.5]} 11... Nf5 {[%clk 0:02:46.4]} 12. Qb3 {[%clk 0:02:28.8]} 12... Ncxd4
{[%clk 0:02:22.5]} 13. Nxd4 {[%clk 0:02:25.9]} 13... Nxd4 {[%clk 0:02:22.4]} 14.
Bxd4 {[%clk 0:02:25.5]} 14... Qxd4 {[%clk 0:02:03.8]} 15. Bxg4 {[%clk
0:02:25.2]} 15... Qxg4 {[%clk 0:02:04.7]} 16. Rae1 {[%clk 0:02:18.1]} 16... Rad8
{[%clk 0:01:39]} 17. Ne4 {[%clk 0:02:13.1]} 17... b6 {[%clk 0:01:36]} 18. c5
{[%clk 0:02:13.4]} 18... bxc5 {[%clk 0:01:26.9]} 19. Nxc5 {[%clk 0:02:13]} 19...
Qd4 {[%clk 0:01:24.6]} 20. Ne4 {[%clk 0:02:01.9]} 20... e6 {[%clk 0:01:24.3]}
21. Re3 {[%clk 0:01:50.6]} 21... Rb8 {[%clk 0:01:22]} 22. Qa3 {[%clk 0:01:47.3]}
22... Rfd8 {[%clk 0:01:14.8]} 23. h3 {[%clk 0:01:46.4]} 23... Bf8 {[%clk
0:01:09.2]} 24. Qa6 {[%clk 0:01:39.1]} 24... Rb2 {[%clk 0:01:07.7]} 25. a3
{[%clk 0:01:30.8]} 25... Bg7 {[%clk 0:00:47.1]} 26. Qc6 {[%clk 0:01:02.7]} 26...
Bh6 {[%clk 0:00:42.2]} 27. Rf3 {[%clk 0:00:55.8]} 27... Bg7 {[%clk 0:00:12.4]}
28. Ng5 {[%clk 0:00:49.2]} 28... Qd7 {[%clk 0:00:10.9]} 29. Qa6 {[%clk
0:00:40.7]} 29... Qb5 {[%clk 0:00:10.5]} 30. Qxb5 {[%clk 0:00:25]} 30... Rxb5
{[%clk 0:00:11.4]} 31. Nxf7 {[%clk 0:00:25.8]} 31... Rd7 {[%clk 0:00:11.7]} 32.
a4 {[%clk 0:00:18.4]} 32... Ra5 {[%clk 0:00:11.4]} 33. Re3 {[%clk 0:00:16.8]}
33... Rxf7 {[%clk 0:00:11.2]} 34. Rxe6 {[%clk 0:00:17.5]} 34... Rxa4 {[%clk
0:00:11.7]} 35. g3 {[%clk 0:00:16.2]} 35... Ra2 {[%clk 0:00:09.8]} 36. Re8+
{[%clk 0:00:16.4]} 36... Bf8 {[%clk 0:00:09.4]} 37. Kg2 {[%clk 0:00:14.6]} 37...
Kg7 {[%clk 0:00:09.8]} 38. Rc8 {[%clk 0:00:15.2]} 38... a5 {[%clk 0:00:09.4]}
39. g4 {[%clk 0:00:15.7]} 39... a4 {[%clk 0:00:09.4]} 40. Kg3 {[%clk 0:00:16.3]}
40... Bd6+ {[%clk 0:00:09.4]} 41. f4 {[%clk 0:00:15.3]} 41... Ra3+ {[%clk
0:00:09.4]} 42. Kh4 {[%clk 0:00:14.9]} 42... Rxf4 {[%clk 0:00:08.2]} 43. Re1
{[%clk 0:00:13.6]} 43... Rf7 {[%clk 0:00:07.7]} 44. Rc6 {[%clk 0:00:11.7]} 44...
Bg3+ {[%clk 0:00:07.6]} 45. Kg5 {[%clk 0:00:11.5]} 45... h6# {[%clk 0:00:07.7]}
0-1

[Event "*** Titled Tuesday Blitz"]
[Site "Chess.com"]
[Date "2021.02.02"]
[Round "11"]
[White "Korchmar_Vasiliy"]
[Black "Gmedmundo"]
[Result "0-1"]
[WhiteElo "2579"]
[BlackElo "2440"]
[TimeControl "180+1"]
[EndTime "12:07:23 PST"]
[Termination "Gmedmundo won on time"]

1. e4 {[%clk 0:03:00.9]} 1... c5 {[%clk 0:02:59.3]} 2. Nf3 {[%clk 0:03:00.6]}
2... d6 {[%clk 0:02:59.3]} 3. d4 {[%clk 0:03:01]} 3... cxd4 {[%clk 0:02:59.2]}
4. Nxd4 {[%clk 0:03:01.9]} 4... Nf6 {[%clk 0:02:59.1]} 5. Nc3 {[%clk 0:03:02.4]}
5... Nc6 {[%clk 0:02:59.1]} 6. Bg5 {[%clk 0:02:58.8]} 6... e6 {[%clk 0:02:58.2]}
7. Qd3 {[%clk 0:02:58.5]} 7... a6 {[%clk 0:02:56.5]} 8. O-O-O {[%clk 0:02:58.4]}
8... Bd7 {[%clk 0:02:55.2]} 9. f4 {[%clk 0:02:58.4]} 9... h6 {[%clk 0:02:53.1]}
10. Bh4 {[%clk 0:02:55.5]} 10... g5 {[%clk 0:02:52.3]} 11. Nxc6 {[%clk 0:02:28]}
11... Bxc6 {[%clk 0:02:50.9]} 12. fxg5 {[%clk 0:02:21.9]} 12... Ng4 {[%clk
0:02:49.7]} 13. Qd2 {[%clk 0:02:05.6]} 13... Be7 {[%clk 0:02:45.1]} 14. Be2
{[%clk 0:01:59.7]} 14... Ne5 {[%clk 0:02:43.6]} 15. Kb1 {[%clk 0:01:58.3]} 15...
hxg5 {[%clk 0:02:42.3]} 16. Bg3 {[%clk 0:01:58.4]} 16... Qc7 {[%clk 0:02:36.6]}
17. Rhf1 {[%clk 0:01:54]} 17... f6 {[%clk 0:02:34.4]} 18. Bxe5 {[%clk
0:01:47.9]} 18... dxe5 {[%clk 0:02:33.5]} 19. Bg4 {[%clk 0:01:46.9]} 19... Bd7
{[%clk 0:02:28.2]} 20. Qe2 {[%clk 0:01:21]} 20... O-O-O {[%clk 0:02:26.2]} 21.
Rd3 {[%clk 0:01:18.4]} 21... Kb8 {[%clk 0:02:23.9]} 22. a3 {[%clk 0:01:09.1]}
22... Bc8 {[%clk 0:02:18.1]} 23. Rfd1 {[%clk 0:01:01.8]} 23... Rxd3 {[%clk
0:02:15]} 24. Qxd3 {[%clk 0:00:54.9]} 24... Rd8 {[%clk 0:02:04.3]} 25. Qh3
{[%clk 0:00:48.8]} 25... Rxd1+ {[%clk 0:02:00.6]} 26. Nxd1 {[%clk 0:00:49.7]}
26... Qb6 {[%clk 0:01:54.4]} 27. Ka2 {[%clk 0:00:38.2]} 27... Bd7 {[%clk
0:01:37.7]} 28. Qh7 {[%clk 0:00:34.7]} 28... Qd6 {[%clk 0:01:26.6]} 29. Qf7
{[%clk 0:00:34.7]} 29... Kc7 {[%clk 0:01:22.4]} 30. Nc3 {[%clk 0:00:26]} 30...
Bd8 {[%clk 0:01:12.8]} 31. g3 {[%clk 0:00:20.6]} 31... Qe7 {[%clk 0:01:12]} 32.
Qg8 {[%clk 0:00:17.8]} 32... b5 {[%clk 0:01:06.3]} 33. h4 {[%clk 0:00:17.6]}
33... gxh4 {[%clk 0:01:03.9]} 34. gxh4 {[%clk 0:00:18.5]} 34... Qe8 {[%clk
0:00:55.4]} 35. Qxe8 {[%clk 0:00:16.3]} 35... Bxe8 {[%clk 0:00:54.5]} 36. Bxe6
{[%clk 0:00:17.2]} 36... Kd6 {[%clk 0:00:54.3]} 37. Bf5 {[%clk 0:00:15.3]} 37...
a5 {[%clk 0:00:52.9]} 38. Kb1 {[%clk 0:00:13.4]} 38... Bb6 {[%clk 0:00:50.8]}
39. h5 {[%clk 0:00:09.6]} 39... Bxh5 {[%clk 0:00:48]} 40. Nxb5+ {[%clk
0:00:09.4]} 40... Kc5 {[%clk 0:00:47.2]} 41. a4 {[%clk 0:00:04.7]} 41... Be8
{[%clk 0:00:42]} 42. Nc3 {[%clk 0:00:04.9]} 42... Kd4 {[%clk 0:00:41.1]} 43. Nd5
{[%clk 0:00:04.6]} 43... Bd8 {[%clk 0:00:40.8]} 44. c3+ {[%clk 0:00:04]} 44...
Kd3 {[%clk 0:00:38.8]} 45. b3 {[%clk 0:00:04.4]} 45... Bc6 {[%clk 0:00:37.5]}
46. Kb2 {[%clk 0:00:03]} 46... Ke2 {[%clk 0:00:34.4]} 47. b4 {[%clk 0:00:02.5]}
47... Kf3 {[%clk 0:00:32.7]} 48. b5 {[%clk 0:00:02.2]} 48... Bxd5 {[%clk
0:00:29.4]} 49. exd5 {[%clk 0:00:03.1]} 49... e4 {[%clk 0:00:28.9]} 50. c4
{[%clk 0:00:03.3]} 50... e3 {[%clk 0:00:28.1]} 51. Bd3 {[%clk 0:00:02]} 51...
Be7 {[%clk 0:00:26.1]} 52. Kc3 {[%clk 0:00:01.5]} 52... Bc5 {[%clk 0:00:23.4]}
0-1

[Event "*** Titled Tuesday Blitz"]
[Site "Chess.com"]
[Date "2021.02.02"]
[Round "11"]
[White "mikolka1985"]
[Black "Saxar85"]
[Result "0-1"]
[WhiteElo "2598"]
[BlackElo "2796"]
[TimeControl "180+1"]
[EndTime "12:07:24 PST"]
[Termination "Saxar85 won by resignation"]

1. d4 {[%clk 0:03:00.9]} 1... Nf6 {[%clk 0:02:59.1]} 2. c4 {[%clk 0:03:00.2]}
2... d6 {[%clk 0:02:59.1]} 3. Nc3 {[%clk 0:02:58.8]} 3... e5 {[%clk 0:02:58.7]}
4. d5 {[%clk 0:02:41.3]} 4... a5 {[%clk 0:02:52]} 5. e4 {[%clk 0:02:40.3]} 5...
Na6 {[%clk 0:02:50.2]} 6. Bd3 {[%clk 0:02:38.8]} 6... Be7 {[%clk 0:02:49.3]} 7.
Nge2 {[%clk 0:02:38]} 7... O-O {[%clk 0:02:48.5]} 8. O-O {[%clk 0:02:37.6]} 8...
Nc5 {[%clk 0:02:46.9]} 9. Bc2 {[%clk 0:02:36.9]} 9... Nh5 {[%clk 0:02:41.7]} 10.
b3 {[%clk 0:02:34.7]} 10... Bg5 {[%clk 0:02:40.1]} 11. a3 {[%clk 0:02:31.5]}
11... Bg4 {[%clk 0:02:29.4]} 12. f3 {[%clk 0:02:29.6]} 12... Bd7 {[%clk
0:02:28.4]} 13. Rb1 {[%clk 0:02:15.5]} 13... h6 {[%clk 0:02:23.8]} 14. b4 {[%clk
0:02:13.8]} 14... axb4 {[%clk 0:02:23.6]} 15. axb4 {[%clk 0:02:13.1]} 15... Na6
{[%clk 0:02:23.5]} 16. Bxg5 {[%clk 0:01:50.9]} 16... Qxg5 {[%clk 0:02:22.5]} 17.
Kh1 {[%clk 0:01:49.2]} 17... g6 {[%clk 0:02:04.4]} 18. Bd3 {[%clk 0:01:42.3]}
18... f5 {[%clk 0:02:00.5]} 19. c5 {[%clk 0:01:39.2]} 19... dxc5 {[%clk
0:01:43]} 20. Bxa6 {[%clk 0:01:38.7]} 20... Rxa6 {[%clk 0:01:37.7]} 21. bxc5
{[%clk 0:01:38.1]} 21... b6 {[%clk 0:01:31.3]} 22. c6 {[%clk 0:01:33.6]} 22...
Bc8 {[%clk 0:01:29]} 23. exf5 {[%clk 0:01:21.8]} 23... Bxf5 {[%clk 0:01:21.8]}
24. Rb4 {[%clk 0:01:16.1]} 24... Qe7 {[%clk 0:00:46.2]} 25. Rb2 {[%clk
0:01:15.1]} 25... Nf6 {[%clk 0:00:42.2]} 26. Ng3 {[%clk 0:01:02.8]} 26... Ra5
{[%clk 0:00:37.4]} 27. Re1 {[%clk 0:01:01.8]} 27... Rd8 {[%clk 0:00:34.7]} 28.
Rd2 {[%clk 0:00:59.7]} 28... Qb4 {[%clk 0:00:30.3]} 29. Nxf5 {[%clk 0:00:45.1]}
29... gxf5 {[%clk 0:00:29.7]} 30. Rd3 {[%clk 0:00:34.5]} 30... Rc5 {[%clk
0:00:25.2]} 31. Qd2 {[%clk 0:00:27.5]} 31... Nxd5 {[%clk 0:00:24.8]} 32. Rxe5
{[%clk 0:00:19.5]} 32... Rd6 {[%clk 0:00:20.5]} 33. Rexd5 {[%clk 0:00:09.4]}
33... Rxc3 {[%clk 0:00:15.5]} 34. Rxd6 {[%clk 0:00:07.1]} 34... Qb1+ {[%clk
0:00:13.4]} 35. Qd1 {[%clk 0:00:06.9]} 35... Qxd1+ {[%clk 0:00:13.3]} 36. Rxd1
{[%clk 0:00:06.6]} 36... cxd6 {[%clk 0:00:13.5]} 37. h4 {[%clk 0:00:06.2]} 37...
Rxc6 {[%clk 0:00:11.8]} 38. Rd5 {[%clk 0:00:06.3]} 38... Kg7 {[%clk 0:00:11]}
39. Rxf5 {[%clk 0:00:05.5]} 39... Rc5 {[%clk 0:00:11.2]} 40. Rf4 {[%clk
0:00:05.4]} 40... b5 {[%clk 0:00:11.6]} 41. Rd4 {[%clk 0:00:05.2]} 41... d5
{[%clk 0:00:10.8]} 42. Kh2 {[%clk 0:00:04.9]} 42... Kf6 {[%clk 0:00:11.1]} 43.
f4 {[%clk 0:00:04.5]} 43... Ke6 {[%clk 0:00:11.3]} 44. g4 {[%clk 0:00:04.3]}
44... Rc4 {[%clk 0:00:11.5]} 45. Rxc4 {[%clk 0:00:02.2]} 45... dxc4 {[%clk
0:00:11.3]} 46. h5 {[%clk 0:00:01.9]} 46... c3 {[%clk 0:00:11.3]} 47. g5 {[%clk
0:00:02.4]} 47... c2 {[%clk 0:00:11.1]} 48. gxh6 {[%clk 0:00:02.1]} 48... c1=Q
{[%clk 0:00:10.8]} 0-1

[Event "*** Titled Tuesday Blitz"]
[Site "Chess.com"]
[Date "2021.02.02"]
[Round "11"]
[White "Sofiia_Hryzlova"]
[Black "KetiGrant"]
[Result "1-0"]
[WhiteElo "2262"]
[BlackElo "2354"]
[TimeControl "180+1"]
[EndTime "12:07:24 PST"]
[Termination "Sofiia_Hryzlova won by resignation"]

1. c4 {[%clk 0:03:00.9]} 1... e5 {[%clk 0:02:58.5]} 2. g3 {[%clk 0:02:58.3]}
2... g6 {[%clk 0:02:57.7]} 3. Nc3 {[%clk 0:02:58.4]} 3... Bg7 {[%clk 0:02:57.7]}
4. Bg2 {[%clk 0:02:58.7]} 4... f5 {[%clk 0:02:54]} 5. e3 {[%clk 0:02:58.5]} 5...
Nf6 {[%clk 0:02:52.6]} 6. Nge2 {[%clk 0:02:58.5]} 6... O-O {[%clk 0:02:51]} 7.
O-O {[%clk 0:02:58.5]} 7... d6 {[%clk 0:02:50.5]} 8. h3 {[%clk 0:02:51.5]} 8...
Nbd7 {[%clk 0:02:43.7]} 9. b4 {[%clk 0:02:50.3]} 9... e4 {[%clk 0:02:41]} 10. d4
{[%clk 0:02:45.9]} 10... exd3 {[%clk 0:02:40.2]} 11. Qxd3 {[%clk 0:02:45.9]}
11... Ne5 {[%clk 0:02:40.6]} 12. Qc2 {[%clk 0:02:42.4]} 12... c6 {[%clk
0:02:36.7]} 13. b5 {[%clk 0:02:14.4]} 13... Be6 {[%clk 0:02:35.3]} 14. Nd4
{[%clk 0:02:07.9]} 14... Bxc4 {[%clk 0:02:33.5]} 15. Rd1 {[%clk 0:02:07.6]}
15... Qc7 {[%clk 0:02:19.2]} 16. bxc6 {[%clk 0:02:02.1]} 16... bxc6 {[%clk
0:02:19.3]} 17. Ba3 {[%clk 0:02:02.1]} 17... Rad8 {[%clk 0:02:16.6]} 18. f4
{[%clk 0:01:45.9]} 18... Ned7 {[%clk 0:02:00.7]} 19. Nxc6 {[%clk 0:01:38.8]}
19... Rde8 {[%clk 0:01:41.3]} 20. Bxd6 {[%clk 0:01:36.3]} 20... Qb6 {[%clk
0:01:41.2]} 21. Bxf8 {[%clk 0:01:33.1]} 21... Qxe3+ {[%clk 0:01:39.6]} 22. Kh1
{[%clk 0:01:32.9]} 22... Bxf8 {[%clk 0:01:33]} 23. Nd5 {[%clk 0:01:03.7]} 23...
Bxd5 {[%clk 0:01:20.8]} 24. Bxd5+ {[%clk 0:00:56.8]} 24... Nxd5 {[%clk
0:01:16.2]} 25. Rxd5 {[%clk 0:00:55.2]} 25... Nf6 {[%clk 0:01:15.7]} 26. Rd3
{[%clk 0:00:51.8]} 26... Qe4+ {[%clk 0:01:14.6]} 27. Kh2 {[%clk 0:00:46.8]}
27... Rc8 {[%clk 0:01:08.9]} 28. Rc3 {[%clk 0:00:35.6]} 28... Qxc2+ {[%clk
0:00:39.7]} 29. Rxc2 {[%clk 0:00:35.1]} 29... Rc7 {[%clk 0:00:40]} 30. Rac1
{[%clk 0:00:34]} 30... Rb7 {[%clk 0:00:39.8]} 31. Nd8 {[%clk 0:00:29.8]} 31...
Rd7 {[%clk 0:00:37.2]} 32. Ne6 {[%clk 0:00:29]} 32... Ba3 {[%clk 0:00:36.1]} 33.
Rb1 {[%clk 0:00:27.5]} 33... Kf7 {[%clk 0:00:34.4]} 34. Ng5+ {[%clk 0:00:27.3]}
34... Kg7 {[%clk 0:00:33.9]} 35. Nf3 {[%clk 0:00:27.2]} 35... Ne4 {[%clk
0:00:33.3]} 36. Ne5 {[%clk 0:00:25.1]} 36... Re7 {[%clk 0:00:30]} 37. Kg2 {[%clk
0:00:23.5]} 37... Bd6 {[%clk 0:00:27.9]} 38. Nc4 {[%clk 0:00:23]} 38... Bc5
{[%clk 0:00:26.2]} 39. Kf3 {[%clk 0:00:21.3]} 39... g5 {[%clk 0:00:24.2]} 40.
Ne5 {[%clk 0:00:19.9]} 40... h5 {[%clk 0:00:20.9]} 41. Rb5 {[%clk 0:00:14.7]}
41... Bd4 {[%clk 0:00:19.7]} 42. Rd5 {[%clk 0:00:13.7]} 42... g4+ {[%clk
0:00:19.4]} 43. hxg4 {[%clk 0:00:13.4]} 43... hxg4+ {[%clk 0:00:19.8]} 44. Kg2
{[%clk 0:00:13.6]} 44... Bb6 {[%clk 0:00:19.3]} 45. Nc6 {[%clk 0:00:12.3]} 45...
Rc7 {[%clk 0:00:17.6]} 46. Rxf5 {[%clk 0:00:12.3]} 46... Kg6 {[%clk 0:00:14.4]}
47. Rd5 {[%clk 0:00:12.1]} 47... Nf6 {[%clk 0:00:12.9]} 48. Ne5+ {[%clk
0:00:12.2]} 48... Kf5 {[%clk 0:00:09.3]} 49. Rxc7 {[%clk 0:00:13.1]} 49... Bxc7
{[%clk 0:00:09]} 50. Rb5 {[%clk 0:00:13.5]} 50... Ne4 {[%clk 0:00:06.9]} 51.
Nc6+ {[%clk 0:00:12.9]} 51... Ke6 {[%clk 0:00:06.3]} 52. Nxa7 {[%clk 0:00:13.6]}
1-0

[Event "*** Titled Tuesday Blitz"]
[Site "Chess.com"]
[Date "2021.02.02"]
[Round "11"]
[White "Oleksandr_Bortnyk"]
[Black "Supernotar"]
[Result "0-1"]
[WhiteElo "2890"]
[BlackElo "2799"]
[TimeControl "180+1"]
[EndTime "12:07:26 PST"]
[Termination "Supernotar won by checkmate"]

1. d4 {[%clk 0:03:00.9]} 1... d5 {[%clk 0:02:59.4]} 2. Nc3 {[%clk 0:03:00.9]}
2... Nf6 {[%clk 0:02:59.3]} 3. Bf4 {[%clk 0:03:01]} 3... a6 {[%clk 0:02:59.8]}
4. e3 {[%clk 0:03:01.1]} 4... e6 {[%clk 0:02:58.4]} 5. Nf3 {[%clk 0:02:59.6]}
5... c5 {[%clk 0:02:58.5]} 6. a3 {[%clk 0:02:59.5]} 6... Nc6 {[%clk 0:02:58.1]}
7. Bd3 {[%clk 0:03:00.1]} 7... b5 {[%clk 0:02:57.1]} 8. O-O {[%clk 0:02:58.5]}
8... Bb7 {[%clk 0:02:57.1]} 9. h3 {[%clk 0:02:57.7]} 9... Be7 {[%clk 0:02:55.3]}
10. dxc5 {[%clk 0:02:58.2]} 10... Bxc5 {[%clk 0:02:55]} 11. e4 {[%clk 0:02:59]}
11... dxe4 {[%clk 0:02:40.6]} 12. Nxe4 {[%clk 0:02:59.9]} 12... Be7 {[%clk
0:02:34.5]} 13. Qe2 {[%clk 0:02:57.2]} 13... O-O {[%clk 0:02:29.5]} 14. Rad1
{[%clk 0:02:53.6]} 14... Nd5 {[%clk 0:02:23.8]} 15. Bc1 {[%clk 0:02:52.7]} 15...
Qb6 {[%clk 0:02:18.4]} 16. Neg5 {[%clk 0:02:46.3]} 16... Nf6 {[%clk 0:02:12]}
17. Nxe6 {[%clk 0:02:35.2]} 17... fxe6 {[%clk 0:02:07.2]} 18. Qxe6+ {[%clk
0:02:36.1]} 18... Kh8 {[%clk 0:02:07.4]} 19. Ne5 {[%clk 0:02:15.1]} 19... Qc7
{[%clk 0:02:00.1]} 20. Nf7+ {[%clk 0:01:58.6]} 20... Rxf7 {[%clk 0:01:51.9]} 21.
Qxf7 {[%clk 0:01:59.5]} 21... Rf8 {[%clk 0:01:51.3]} 22. Qe6 {[%clk 0:01:56.6]}
22... Nd4 {[%clk 0:01:45]} 23. Qe3 {[%clk 0:01:56.8]} 23... Bc5 {[%clk
0:01:36.5]} 24. Qg5 {[%clk 0:01:53.2]} 24... Qc6 {[%clk 0:01:06.3]} 25. Kh1
{[%clk 0:00:57.1]} 25... Ne6 {[%clk 0:00:54.8]} 26. Qg3 {[%clk 0:00:51.2]} 26...
Nh5 {[%clk 0:00:54.1]} 27. Qg4 {[%clk 0:00:47.4]} 27... Nf6 {[%clk 0:00:48.5]}
28. Qg3 {[%clk 0:00:47.8]} 28... Nh5 {[%clk 0:00:48]} 29. Qh2 {[%clk 0:00:33.9]}
29... Rxf2 {[%clk 0:00:36]} 30. Rxf2 {[%clk 0:00:24.9]} 30... Bxf2 {[%clk
0:00:36.9]} 31. Be4 {[%clk 0:00:25.4]} 31... Qe8 {[%clk 0:00:14.9]} 32. Qe5
{[%clk 0:00:05.6]} 32... Ng3+ {[%clk 0:00:11.8]} 33. Kh2 {[%clk 0:00:05.5]}
33... Nxe4 {[%clk 0:00:11.6]} 34. Bf4 {[%clk 0:00:04.5]} 34... h6 {[%clk
0:00:07.9]} 35. b4 {[%clk 0:00:02.6]} 35... Qf7 {[%clk 0:00:05]} 36. g3 {[%clk
0:00:02.2]} 36... Kh7 {[%clk 0:00:04.7]} 37. Rf1 {[%clk 0:00:01.7]} 37... Nxf4
{[%clk 0:00:04.1]} 38. Qxf4 {[%clk 0:00:01.9]} 38... Qxf4 {[%clk 0:00:03.8]} 39.
gxf4 {[%clk 0:00:02.8]} 39... Bd4 {[%clk 0:00:04]} 40. c3 {[%clk 0:00:02.6]}
40... Bxc3 {[%clk 0:00:04.2]} 41. Rc1 {[%clk 0:00:02.9]} 41... Bb2 {[%clk
0:00:04.5]} 42. Rc7 {[%clk 0:00:03.4]} 42... Bd5 {[%clk 0:00:04.8]} 43. Rd7
{[%clk 0:00:03.4]} 43... Bc4 {[%clk 0:00:05.2]} 44. Re7 {[%clk 0:00:02.8]} 44...
Nc3 {[%clk 0:00:05.2]} 45. Ra7 {[%clk 0:00:01.8]} 45... Bxa3 {[%clk 0:00:05.5]}
46. f5 {[%clk 0:00:02.7]} 46... Ne4 {[%clk 0:00:04.6]} 47. Rxa6 {[%clk 0:00:03]}
47... Bxb4 {[%clk 0:00:05.1]} 48. h4 {[%clk 0:00:03.7]} 48... Nf6 {[%clk
0:00:05.6]} 49. Kh3 {[%clk 0:00:04]} 49... h5 {[%clk 0:00:06.3]} 50. Ra7 {[%clk
0:00:04.1]} 50... Bc5 {[%clk 0:00:06.5]} 51. Rc7 {[%clk 0:00:04.4]} 51... Bd6
{[%clk 0:00:06.5]} 52. Rc6 {[%clk 0:00:04.9]} 52... Bf1# {[%clk 0:00:06.3]} 0-1